[Event "EYCC Open-U18 2019"]
[Site "Bratislava"]
[Date "2019.08.02"]
[Round "1.24"]
[White "Sousa, Hugo Carneiro"]
[Black "Baenziger, Fabian"]
[Result "0-1"]
[ECO "B23"]
[WhiteElo "2130"]
[BlackElo "2352"]
[Annotator "NA"]
[PlyCount "62"]
[EventDate "2019.08.02"]
[EventType "swiss"]
[EventCountry "SVK"]
[SourceTitle "playchess.com"]
[Source "ChessBase"]
[SourceQuality "1"]
[TimeControl "40/5400+30:1800+30"]

1. e4 {[%emt 0:00:00]} c5 {[%emt 0:00:00]} 2. Nc3 {[%emt 0:00:00]} d6 {[%emt 0:00:33]} 3. f4 {[%emt 0:00:33]} g6 {[%emt 0:00:34]} 4. Nf3 {[%emt 0:00:19]} Bg7 {[%emt 0:00:17]} 5. Bb5+ {[%emt 0:00:33]} Bd7 {[%emt 0:00:38]} 6. Bc4 {[%emt 0:02:00]} Nc6 {[%emt 0:00:52]} 7. O-O {[%emt 0:02:22]} Nd4 {[%emt 0:01:04]} 8. Nxd4 {[%emt 0:06:06]} cxd4 {[%emt 0:00:36]} 9. Ne2 {[%emt 0:01:26]} d5 {[%emt 0:00:25]} 10. Bxd5 {[%emt 0:07:58]} Nf6 {[%emt 0:00:22]} 11. Bxb7 {[%emt 0:04:29]} Rb8 {[%emt 0:00:07]} 12. Ba6 {[%emt 0:02:36]} Nxe4 {[%emt 0:00:41]} 13. d3 {[%emt 0:10:56]} Nd6 {[%emt 0:00:40]} 14. b3 {[%emt 0:03:14]} h5 {[%emt 0:11:23]} 15. Bd2 {[%emt 0:08:44]} h4 {[%emt 0:01:53]} 16. Qe1 {[%emt 0:10:01]} h3 {[%emt 0:15:42]} 17. Ba5 {[%emt 0:06:40]} Rb6 {[%emt 0:00:32]} 18. Bc4 {[%emt 0:05:45]} Qa8 {[%emt 0:17:20]} 19. Qf2 {[%emt 0:03:11]} Qxg2+ {[%emt 0:05:36]} 20. Qxg2 {[%emt 0:00:06]} hxg2 {[%emt 0:00:05]} 21. Rf2 {[%emt 0:02:44]} Nxc4 {[%emt 0:00:38]} 22. dxc4 {[%emt 0:03:18]} Re6 {[%emt 0:10:10]} 23. Rd1 {[%emt 0:03:33]} Rh5 {[%emt 0:01:05]} 24. Bb4 {[%emt 0:01:23]} a5 {[%emt 0:01:41]} 25. Ba3 {[%emt 0:02:23]} Bc6 {[%emt 0:02:44]} 26. Ng3 {[%emt 0:05:19]} Rh3 {[%emt 0:07:01]} 27. Re2 {[%emt 0:02:47]} Rxe2 {[%emt 0:02:21]} 28. Nxe2 {[%emt 0:00:05]} Re3 {[%emt 0:00:28]} 29. Ng3 {[%emt 0:01:16]} d3 {[%emt 0:02:14]} 30. Bc5 {[%emt 0:02:56]} dxc2 {[%emt 0:00:25]} 31. Rc1 {[%emt 0:01:05]} Rd3 {[%emt 0:00:15]} 0-1

[Event "EYCC Open-U18 2019"]
[Site "Bratislava"]
[Date "2019.08.02"]
[Round "1.25"]
[White "Stijve, Theo"]
[Black "Easwaralingam, Adesh"]
[Result "1-0"]
[ECO "B49"]
[WhiteElo "2336"]
[BlackElo "2113"]
[Annotator "NA"]
[PlyCount "119"]
[EventDate "2019.08.02"]
[EventType "swiss"]
[EventCountry "SVK"]
[SourceTitle "playchess.com"]
[Source "ChessBase"]
[SourceQuality "1"]
[TimeControl "40/5400+30:1800+30"]

1. e4 {[%emt 0:00:04]} c5 {[%emt 0:00:00]} 2. Nc3 {[%emt 0:00:08]} e6 {[%emt 0:00:00]} 3. Nf3 {[%emt 0:00:10]} Nc6 {[%emt 0:01:03]} 4. d4 {[%emt 0:00:10]} cxd4 {[%emt 0:00:07]} 5. Nxd4 {[%emt 0:00:06]} Qc7 {[%emt 0:00:10]} 6. Be3 {[%emt 0:00:13]} a6 {[%emt 0:00:12]} 7. Be2 {[%emt 0:00:09]} Nf6 {[%emt 0:00:51]} 8. O-O {[%emt 0:00:11]} Be7 {[%emt 0:01:32]} 9. f4 {[%emt 0:00:13]} d6 {[%emt 0:01:14]} 10. Kh1 {[%emt 0:00:09]} O-O {[%emt 0:06:11]} 11. Qe1 {[%emt 0:00:13]} Nxd4 {[%emt 0:01:52]} 12. Bxd4 {[%emt 0:00:11]} b5 {[%emt 0:03:50]} 13. Qg3 {[%emt 0:00:10]} b4 {[%emt 0:08:14]} 14. e5 {[%emt 0:00:14]} Ne8 {[%emt 0:02:14]} 15. exd6 {[%emt 0:10:19]} Bxd6 {[%emt 0:01:09]} 16. Ne4 {[%emt 0:04:40]} Be7 {[%emt 0:17:20]} 17. Rad1 {[%emt 0:14:20]} Bd7 {[%emt 0:06:59]} 18. Be5 {[%emt 0:08:25]} Qb7 {[%emt 0:06:07]} 19. Nd6 {[%emt 0:16:12]} Bxd6 {[%emt 0:00:45]} 20. Rxd6 {[%emt 0:00:31]} f6 {[%emt 0:05:33]} 21. Bf3 {[%emt 0:04:32]} Qb5 {[%emt 0:02:31]} 22. Rdd1 {[%emt 0:01:46]} Rc8 {[%emt 0:04:56]} 23. Bd4 {[%emt 0:07:14]} Nd6 {[%emt 0:02:52]} 24. Bg1 {[%emt 0:05:45]} Nf5 {[%emt 0:08:16]} 25. Qf2 {[%emt 0:01:53]} Bc6 {[%emt 0:00:51]} 26. Rfe1 {[%emt 0:06:31]} Bxf3 {[%emt 0:01:40]} 27. Qxf3 {[%emt 0:00:10]} Qc6 {[%emt 0:06:23]} 28. Qb3 {[%emt 0:02:48]} Rfe8 {[%emt 0:03:28]} 29. Rd2 {[%emt 0:00:55]} a5 {[%emt 0:00:44]} 30. a4 {[%emt 0:02:58]} Kf7 {[%emt 0:01:37]} 31. Red1 {[%emt 0:01:44]} Re7 {[%emt 0:00:40]} 32. Qh3 {[%emt 0:03:32]} h6 {[%emt 0:01:08]} 33. b3 {[%emt 0:01:08]} g6 {[%emt 0:00:52]} 34. Qd3 {[%emt 0:01:23]} h5 {[%emt 0:00:38]} 35. Bf2 {[%emt 0:01:19]} Qb7 {[%emt 0:01:48]} 36. Kg1 {[%emt 0:01:08]} Rec7 {[%emt 0:01:30]} 37. Qd7+ {[%emt 0:04:16]} Ne7 {[%emt 0:01:25]} 38. Qd3 {[%emt 0:02:35]} Nd5 {[%emt 0:00:35]} 39. Qe4 {[%emt 0:00:28]} Nc3 {[%emt 0:01:05]} 40. Qxb7 {[%emt 0:00:00]} Rxb7 {[%emt 0:00:00]} 41. Rd7+ {[%emt 0:04:06]} Rxd7 {[%emt 0:01:15]} 42. Rxd7+ {[%emt 0:02:37]} Ke8 {[%emt 0:00:30]} 43. Rd2 {[%emt 0:04:55]} Rc6 {[%emt 0:02:25]} 44. Bh4 {[%emt 0:04:04]} Ke7 {[%emt 0:02:38]} 45. h3 {[%emt 0:06:30]} Nd5 {[%emt 0:02:33]} 46. f5 {[%emt 0:03:30]} gxf5 {[%emt 0:01:06]} 47. Kf2 {[%emt 0:00:24]} Nc3 {[%emt 0:01:00]} 48. Ke3 {[%emt 0:03:29]} Nb1 {[%emt 0:00:50]} 49. Rd1 {[%emt 0:04:22]} Rc3+ {[%emt 0:02:23]} 50. Kf4 {[%emt 0:01:25]} e5+ {[%emt 0:00:09]} 51. Kxf5 {[%emt 0:00:27]} Na3 {[%emt 0:00:21]} 52. Bxf6+ {[%emt 0:00:09]} Kf7 {[%emt 0:00:04]} 53. Bxe5 {[%emt 0:01:02]} Rxc2 {[%emt 0:00:24]} 54. Rd7+ {[%emt 0:00:19]} Ke8 {[%emt 0:00:04]} 55. Ke6 {[%emt 0:00:28]} Re2 {[%emt 0:00:06]} 56. Re7+ {[%emt 0:00:41]} Kd8 {[%emt 0:00:17]} 57. Rh7 {[%emt 0:00:30]} Kc8 {[%emt 0:00:06]} 58. Rc7+ {[%emt 0:00:12]} Kd8 {[%emt 0:00:05]} 59. Rc5 {[%emt 0:00:41]} Rxg2 {[%emt 0:00:25]} 60. Bf6+ {[%emt 0:00:06]} 1-0

[Event "EYCC Open-U18 2019"]
[Site "Bratislava"]
[Date "2019.08.02"]
[Round "1.26"]
[White "Bulockin, Martin"]
[Black "Fus, Jakub"]
[Result "0-1"]
[ECO "C68"]
[WhiteElo "2210"]
[BlackElo "2341"]
[Annotator "NA"]
[PlyCount "82"]
[EventDate "2019.08.02"]
[EventType "swiss"]
[EventCountry "SVK"]
[SourceTitle "playchess.com"]
[Source "ChessBase"]
[SourceQuality "1"]
[TimeControl "40/5400+30:1800+30"]

1. e4 {[%emt 0:00:00]} e5 {[%emt 0:00:00]} 2. Nf3 {[%emt 0:00:22]} Nc6 {[%emt 0:00:20]} 3. Bb5 {[%emt 0:00:59]} a6 {[%emt 0:00:37]} 4. Bxc6 {[%emt 0:00:41]} dxc6 {[%emt 0:00:18]} 5. d4 {[%emt 0:01:05]} exd4 {[%emt 0:00:21]} 6. Qxd4 {[%emt 0:00:36]} Qxd4 {[%emt 0:00:43]} 7. Nxd4 {[%emt 0:00:01]} c5 {[%emt 0:02:37]} 8. Nb3 {[%emt 0:03:43]} Bd6 {[%emt 0:03:11]} 9. Be3 {[%emt 0:04:29]} b6 {[%emt 0:01:29]} 10. Nc3 {[%emt 0:01:10]} Ne7 {[%emt 0:01:49]} 11. O-O-O {[%emt 0:03:34]} Be6 {[%emt 0:03:20]} 12. f4 {[%emt 0:03:09]} f6 {[%emt 0:02:17]} 13. g3 {[%emt 0:06:19]} O-O-O {[%emt 0:01:52]} 14. Rde1 {[%emt 0:04:40]} Nc6 {[%emt 0:04:26]} 15. Rhf1 {[%emt 0:02:24]} h5 {[%emt 0:03:46]} 16. Nd2 {[%emt 0:10:26]} Bh3 {[%emt 0:10:50]} 17. Rg1 {[%emt 0:03:02]} Bg4 {[%emt 0:15:36]} 18. Nd1 {[%emt 0:06:24]} Nd4 {[%emt 0:11:16]} 19. Bxd4 {[%emt 0:01:48]} cxd4 {[%emt 0:00:05]} 20. Nf2 {[%emt 0:01:29]} Be6 {[%emt 0:04:27]} 21. Nd3 {[%emt 0:04:13]} Rde8 {[%emt 0:04:16]} 22. Nf3 {[%emt 0:10:21]} c5 {[%emt 0:01:11]} 23. e5 {[%emt 0:02:08]} fxe5 {[%emt 0:05:22]} 24. fxe5 {[%emt 0:01:17]} Be7 {[%emt 0:00:19]} 25. Nf4 {[%emt 0:01:27]} Bd8 {[%emt 0:00:18]} 26. h4 {[%emt 0:04:32]} Bg4 {[%emt 0:07:59]} 27. Ng5 {[%emt 0:06:30]} Bxg5 {[%emt 0:00:33]} 28. hxg5 {[%emt 0:00:01]} Rhf8 {[%emt 0:00:17]} 29. Rgf1 {[%emt 0:06:12]} Rf5 {[%emt 0:02:00]} 30. g6 {[%emt 0:02:54]} Rfxe5 31. Rxe5 {[%emt 0:00:08]} Rxe5 {[%emt 0:01:55]} 32. Nd3 {[%emt 0:00:47]} Rf5 {[%emt 0:01:09]} 33. Re1 {[%emt 0:01:01]} Rf6 {[%emt 0:03:17]} 34. Ne5 {[%emt 0:02:12]} Re6 {[%emt 0:00:41]} 35. Kd2 {[%emt 0:00:40]} Bf5 {[%emt 0:01:20]} 36. b4 {[%emt 0:02:41]} cxb4 {[%emt 0:01:16]} 37. Nf3 {[%emt 0:00:58]} Rxe1 {[%emt 0:00:04]} 38. Kxe1 {[%emt 0:00:07]} Bxc2 {[%emt 0:00:48]} 39. Nxd4 {[%emt 0:00:01]} Bxg6 {[%emt 0:00:07]} 40. Nc6 {[%emt 0:00:00]} Bf7 {[%emt 0:00:00]} 41. Nxb4 {[%emt 0:00:30]} a5 {[%emt 0:00:15]} 0-1

[Event "EYCC Open-U18 2019"]
[Site "Bratislava"]
[Date "2019.08.02"]
[Round "1.27"]
[White "Chylewski, Patryk"]
[Black "Triantos, Konstantinos"]
[Result "1-0"]
[ECO "E06"]
[WhiteElo "2376"]
[BlackElo "2129"]
[Annotator "NA"]
[PlyCount "77"]
[EventDate "2019.08.02"]
[EventType "swiss"]
[EventCountry "SVK"]
[SourceTitle "playchess.com"]
[Source "ChessBase"]
[SourceQuality "1"]
[TimeControl "40/5400+30:1800+30"]

1. d4 {[%emt 0:00:00]} Nf6 {[%emt 0:00:05]} 2. c4 {[%emt 0:00:00]} e6 {[%emt 0:00:10]} 3. g3 {[%emt 0:00:00]} d5 {[%emt 0:01:51]} 4. Nf3 {[%emt 0:00:00]} Be7 {[%emt 0:00:27]} 5. Bg2 {[%emt 0:00:00]} O-O {[%emt 0:00:15]} 6. O-O {[%emt 0:00:04]} c6 {[%emt 0:00:38]} 7. Nc3 {[%emt 0:01:53]} b6 {[%emt 0:02:16]} 8. Ne5 {[%emt 0:01:08]} Bb7 {[%emt 0:07:14]} 9. e4 {[%emt 0:02:05]} dxc4 {[%emt 0:02:42]} 10. Nxc4 {[%emt 0:00:27]} b5 {[%emt 0:09:15]} 11. Ne3 {[%emt 0:04:54]} b4 {[%emt 0:05:34]} 12. Ne2 {[%emt 0:06:48]} Nbd7 {[%emt 0:02:59]} 13. b3 {[%emt 0:01:19]} a5 {[%emt 0:24:52]} 14. Bb2 {[%emt 0:05:41]} a4 {[%emt 0:00:35]} 15. Rc1 {[%emt 0:01:44]} Qb8 {[%emt 0:12:11]} 16. f4 {[%emt 0:04:59]} Rd8 {[%emt 0:09:59]} 17. e5 {[%emt 0:22:03]} Nd5 {[%emt 0:00:24]} 18. Nxd5 {[%emt 0:02:32]} cxd5 {[%emt 0:00:11]} 19. f5 {[%emt 0:00:39]} exf5 {[%emt 0:06:41]} 20. Rxf5 {[%emt 0:00:47]} axb3 {[%emt 0:00:50]} 21. axb3 {[%emt 0:03:37]} Ra2 {[%emt 0:00:18]} 22. Rc2 {[%emt 0:00:57]} Rc8 {[%emt 0:05:03]} 23. Rd2 {[%emt 0:01:53]} g6 {[%emt 0:02:22]} 24. Rf1 {[%emt 0:00:16]} Bg5 {[%emt 0:02:11]} 25. Nf4 {[%emt 0:00:09]} Nf8 {[%emt 0:01:36]} 26. Qb1 {[%emt 0:14:06]} Qa7 {[%emt 0:00:54]} 27. Rdf2 {[%emt 0:00:57]} Ra5 {[%emt 0:01:15]} 28. Kh1 {[%emt 0:07:14]} Rc7 {[%emt 0:00:36]} 29. h4 {[%emt 0:04:03]} Bxf4 {[%emt 0:00:27]} 30. gxf4 {[%emt 0:00:18]} Bc8 {[%emt 0:00:33]} 31. f5 {[%emt 0:00:47]} Bxf5 {[%emt 0:00:28]} 32. Rxf5 {[%emt 0:00:04]} gxf5 {[%emt 0:00:03]} 33. Qxf5 {[%emt 0:00:18]} Ra2 {[%emt 0:00:52]} 34. Qg5+ {[%emt 0:05:02]} Ng6 {[%emt 0:00:30]} 35. Qd8+ {[%emt 0:02:50]} Kg7 {[%emt 0:00:36]} 36. Qf6+ {[%emt 0:00:13]} Kg8 {[%emt 0:00:16]} 37. h5 {[%emt 0:00:52]} Rxb2 {[%emt 0:00:45]} 38. h6 {[%emt 0:00:12]} Kf8 {[%emt 0:00:28]} 39. Qd8# 1-0

[Event "EYCC Open-U18 2019"]
[Site "Bratislava"]
[Date "2019.08.02"]
[Round "1.28"]
[White "Alivodic, Dario"]
[Black "Pantzar, Milton"]
[Result "0-1"]
[ECO "D16"]
[WhiteElo "2120"]
[BlackElo "2357"]
[Annotator "NA"]
[PlyCount "92"]
[EventDate "2019.08.02"]
[EventType "swiss"]
[EventCountry "SVK"]
[SourceTitle "playchess.com"]
[Source "ChessBase"]
[SourceQuality "1"]
[TimeControl "40/5400+30:1800+30"]

1. d4 {[%emt 0:00:00]} d5 {[%emt 0:00:00]} 2. c4 {[%emt 0:00:00]} c6 {[%emt 0:00:00]} 3. Nc3 {[%emt 0:00:00]} Nf6 {[%emt 0:00:03]} 4. Nf3 {[%emt 0:00:00]} dxc4 {[%emt 0:00:25]} 5. a4 {[%emt 0:00:00]} a5 {[%emt 0:00:44]} 6. e4 {[%emt 0:01:35]} Bg4 {[%emt 0:00:23]} 7. Bxc4 {[%emt 0:04:05]} e6 {[%emt 0:00:15]} 8. e5 {[%emt 0:11:16]} Nd5 {[%emt 0:01:58]} 9. Nxd5 {[%emt 0:04:43]} cxd5 {[%emt 0:03:15]} 10. Bb5+ {[%emt 0:01:06]} Nc6 {[%emt 0:01:39]} 11. O-O {[%emt 0:00:11]} Be7 {[%emt 0:02:39]} 12. b3 {[%emt 0:06:04]} O-O {[%emt 0:01:36]} 13. Bxc6 {[%emt 0:00:18]} bxc6 {[%emt 0:00:06]} 14. Ba3 {[%emt 0:00:12]} Bxa3 {[%emt 0:05:40]} 15. Rxa3 {[%emt 0:00:02]} Rb8 {[%emt 0:05:21]} 16. Qd3 {[%emt 0:00:56]} Rb4 {[%emt 0:01:04]} 17. Rc1 {[%emt 0:06:16]} Bxf3 {[%emt 0:02:02]} 18. Qxf3 {[%emt 0:00:02]} Qb6 {[%emt 0:04:48]} 19. g3 {[%emt 0:06:30]} Qxd4 {[%emt 0:01:18]} 20. Qc3 {[%emt 0:00:20]} Qb6 {[%emt 0:18:40]} 21. Qxc6 {[%emt 0:00:30]} Rxb3 {[%emt 0:00:28]} 22. Qxb6 {[%emt 0:02:10]} Rxb6 {[%emt 0:00:03]} 23. Rc5 {[%emt 0:00:06]} Ra8 {[%emt 0:01:51]} 24. Rac3 {[%emt 0:00:43]} g5 {[%emt 0:01:34]} 25. f4 {[%emt 0:04:56]} Rb4 {[%emt 0:08:50]} 26. f5 {[%emt 0:12:59]} Rxa4 {[%emt 0:02:29]} 27. fxe6 {[%emt 0:05:50]} fxe6 {[%emt 0:00:07]} 28. Rc7 {[%emt 0:00:11]} Rc4 {[%emt 0:00:28]} 29. R7xc4 {[%emt 0:00:11]} dxc4 {[%emt 0:00:06]} 30. Rxc4 {[%emt 0:00:03]} a4 {[%emt 0:00:07]} 31. Rc2 {[%emt 0:00:06]} a3 {[%emt 0:00:24]} 32. Ra2 {[%emt 0:00:01]} g4 {[%emt 0:01:08]} 33. Kf1 {[%emt 0:04:25]} Kg7 {[%emt 0:00:22]} 34. Ke1 {[%emt 0:00:05]} Kg6 {[%emt 0:00:08]} 35. Kd1 {[%emt 0:00:03]} Kf5 {[%emt 0:00:11]} 36. Kc1 {[%emt 0:00:05]} Kxe5 {[%emt 0:00:16]} 37. Kb1 {[%emt 0:00:05]} Kd4 {[%emt 0:04:18]} 38. Rd2+ {[%emt 0:00:35]} Ke3 {[%emt 0:00:35]} 39. Rd7 {[%emt 0:00:39]} h5 {[%emt 0:00:49]} 40. Ka2 {[%emt 0:00:00]} Kf3 {[%emt 0:00:00]} 41. Rd6 {[%emt 0:06:20]} Kg2 {[%emt 0:01:31]} 42. Rxe6 {[%emt 0:00:11]} Kxh2 {[%emt 0:00:06]} 43. Re5 {[%emt 0:00:43]} h4 {[%emt 0:00:53]} 44. gxh4 {[%emt 0:00:23]} g3 {[%emt 0:00:05]} 45. Rc5 {[%emt 0:00:52]} g2 {[%emt 0:00:31]} 46. Rc2 {[%emt 0:00:02]} Kh1 0-1

[Event "EYCC Open-U18 2019"]
[Site "Bratislava"]
[Date "2019.08.02"]
[Round "1.29"]
[White "Parkhov, Yair"]
[Black "Kukas, Oliver"]
[Result "0-1"]
[ECO "A56"]
[WhiteElo "2354"]
[BlackElo "2082"]
[Annotator "NA"]
[PlyCount "89"]
[EventDate "2019.08.02"]
[EventType "swiss"]
[EventCountry "SVK"]
[SourceTitle "playchess.com"]
[Source "ChessBase"]
[SourceQuality "1"]
[TimeControl "40/5400+30:1800+30"]

1. d4 {[%emt 0:00:00]} Nf6 {[%emt 0:00:00]} 2. c4 {[%emt 0:00:00]} c5 {[%emt 0:00:00]} 3. d5 {[%emt 0:00:00]} e5 {[%emt 0:00:00]} 4. Nc3 {[%emt 0:00:20]} d6 {[%emt 0:00:08]} 5. g3 {[%emt 0:01:03]} Be7 {[%emt 0:01:52]} 6. Bg2 {[%emt 0:00:08]} Nbd7 {[%emt 0:00:06]} 7. e4 {[%emt 0:00:49]} Nf8 {[%emt 0:00:39]} 8. h4 {[%emt 0:14:09]} h6 {[%emt 0:02:39]} 9. Bh3 {[%emt 0:05:09]} Ng6 {[%emt 0:02:31]} 10. h5 {[%emt 0:12:32]} Nf8 {[%emt 0:00:11]} 11. f4 {[%emt 0:05:01]} Bxh3 {[%emt 0:05:22]} 12. Nxh3 {[%emt 0:02:40]} N6d7 {[%emt 0:05:02]} 13. Be3 {[%emt 0:11:56]} Bf6 {[%emt 0:03:24]} 14. Qd2 {[%emt 0:02:02]} Qa5 {[%emt 0:05:56]} 15. Rc1 {[%emt 0:06:16]} Nh7 {[%emt 0:02:00]} 16. O-O {[%emt 0:04:16]} O-O {[%emt 0:00:22]} 17. f5 {[%emt 0:02:43]} a6 {[%emt 0:03:38]} 18. b3 {[%emt 0:11:58]} b5 {[%emt 0:02:59]} 19. Nd1 {[%emt 0:01:03]} Qxd2 {[%emt 0:08:53]} 20. Bxd2 {[%emt 0:00:04]} Bg5 {[%emt 0:02:33]} 21. Nxg5 {[%emt 0:00:26]} Nxg5 {[%emt 0:00:29]} 22. Bxg5 {[%emt 0:00:12]} hxg5 {[%emt 0:00:05]} 23. Nf2 {[%emt 0:01:29]} Nf6 {[%emt 0:03:42]} 24. g4 {[%emt 0:02:45]} Rfb8 {[%emt 0:01:30]} 25. Kg2 {[%emt 0:00:59]} a5 {[%emt 0:05:52]} 26. Rc2 {[%emt 0:07:00]} a4 {[%emt 0:03:00]} 27. Rh1 {[%emt 0:01:59]} axb3 {[%emt 0:03:37]} 28. axb3 {[%emt 0:00:06]} Ra3 {[%emt 0:03:16]} 29. Rh3 {[%emt 0:00:41]} bxc4 {[%emt 0:03:02]} 30. bxc4 {[%emt 0:00:09]} Rxh3 {[%emt 0:00:22]} 31. Kxh3 {[%emt 0:01:28]} Rb3+ {[%emt 0:00:07]} 32. Kg2 {[%emt 0:00:08]} Re3 {[%emt 0:00:30]} 33. Rc1 {[%emt 0:03:14]} Nxe4 {[%emt 0:00:54]} 34. Nxe4 {[%emt 0:00:06]} Rxe4 {[%emt 0:00:05]} 35. Kf3 {[%emt 0:00:08]} Rf4+ {[%emt 0:00:29]} 36. Kg3 {[%emt 0:00:05]} Kf8 {[%emt 0:01:53]} 37. Rc2 {[%emt 0:00:06]} Ke7 {[%emt 0:02:21]} 38. Rc1 {[%emt 0:00:05]} Kf6 {[%emt 0:00:39]} 39. Rc2 {[%emt 0:00:13]} e4 {[%emt 0:02:25]} 40. Rc3 {[%emt 0:00:00]} Ke5 {[%emt 0:00:00]} 41. Ra3 {[%emt 0:00:16]} Kd4 {[%emt 0:09:24]} 42. Ra7 {[%emt 0:00:10]} e3 {[%emt 0:00:29]} 43. Rxf7 {[%emt 0:00:06]} Re4 {[%emt 0:01:29]} 44. Rb7 {[%emt 0:00:19]} e2 {[%emt 0:00:10]} 45. Rb1 {[%emt 0:00:04]} 0-1

[Event "EYCC Open-U18 2019"]
[Site "Bratislava"]
[Date "2019.08.02"]
[Round "1.30"]
[White "Toquero Gracia, Pau"]
[Black "Kozak, Antoni"]
[Result "1/2-1/2"]
[ECO "B40"]
[WhiteElo "2080"]
[BlackElo "2365"]
[Annotator "NA"]
[PlyCount "120"]
[EventDate "2019.08.02"]
[EventType "swiss"]
[EventCountry "SVK"]
[SourceTitle "playchess.com"]
[Source "ChessBase"]
[SourceQuality "1"]
[TimeControl "40/5400+30:1800+30"]

1. e4 {[%emt 0:00:00]} c5 {[%emt 0:00:24]} 2. Nf3 {[%emt 0:00:00]} e6 {[%emt 0:00:09]} 3. c3 {[%emt 0:00:09]} d5 {[%emt 0:06:08]} 4. exd5 {[%emt 0:00:08]} Qxd5 {[%emt 0:00:05]} 5. d4 {[%emt 0:00:06]} Nc6 {[%emt 0:02:23]} 6. Be2 {[%emt 0:01:15]} Nf6 {[%emt 0:03:52]} 7. O-O {[%emt 0:01:05]} cxd4 {[%emt 0:01:02]} 8. cxd4 {[%emt 0:00:31]} Be7 {[%emt 0:00:14]} 9. Nc3 {[%emt 0:01:14]} Qa5 {[%emt 0:01:32]} 10. Qb3 {[%emt 0:25:20]} O-O {[%emt 0:02:20]} 11. Bf4 {[%emt 0:00:00]} Qb4 {[%emt 0:06:28]} 12. Qxb4 {[%emt 0:12:38]} Nxb4 {[%emt 0:01:12]} 13. a3 {[%emt 0:16:26]} Nbd5 {[%emt 0:01:40]} 14. Bg5 {[%emt 0:01:05]} Nxc3 {[%emt 0:06:26]} 15. bxc3 {[%emt 0:00:38]} b6 {[%emt 0:00:07]} 16. Ne5 {[%emt 0:04:15]} Bb7 {[%emt 0:00:45]} 17. Nd7 {[%emt 0:13:32]} Rfc8 {[%emt 0:01:38]} 18. Nxf6+ {[%emt 0:00:12]} Bxf6 {[%emt 0:00:20]} 19. Bd2 {[%emt 0:00:44]} Bd5 {[%emt 0:02:04]} 20. Rac1 {[%emt 0:03:08]} Bc4 {[%emt 0:00:11]} 21. Bf3 {[%emt 0:01:44]} Bxf1 {[%emt 0:03:08]} 22. Bxa8 {[%emt 0:00:04]} Bd3 {[%emt 0:02:27]} 23. Bb7 {[%emt 0:03:24]} Rd8 {[%emt 0:03:20]} 24. Re1 {[%emt 0:05:19]} Bb5 {[%emt 0:04:06]} 25. Bf4 {[%emt 0:04:36]} Be7 {[%emt 0:04:14]} 26. Ra1 {[%emt 0:01:25]} Bc4 {[%emt 0:01:51]} 27. a4 {[%emt 0:01:05]} g5 {[%emt 0:00:08]} 28. Be3 {[%emt 0:00:48]} Rd7 {[%emt 0:02:46]} 29. Bf3 {[%emt 0:01:38]} h6 {[%emt 0:01:14]} 30. g3 {[%emt 0:00:31]} Rc7 {[%emt 0:01:39]} 31. a5 {[%emt 0:00:41]} bxa5 {[%emt 0:00:48]} 32. Rxa5 {[%emt 0:00:35]} a6 {[%emt 0:00:06]} 33. h4 {[%emt 0:01:09]} gxh4 {[%emt 0:00:42]} 34. Bxh6 {[%emt 0:00:10]} Bb5 {[%emt 0:01:11]} 35. Bd2 {[%emt 0:00:12]} hxg3 {[%emt 0:00:08]} 36. fxg3 {[%emt 0:00:13]} Ra7 {[%emt 0:00:19]} 37. Kf2 {[%emt 0:00:29]} Bd8 {[%emt 0:00:06]} 38. Ra1 {[%emt 0:01:03]} a5 {[%emt 0:01:08]} 39. Be2 {[%emt 0:00:24]} Bc6 {[%emt 0:00:08]} 40. Bf3 {[%emt 0:00:00]} Bb5 {[%emt 0:00:00]} 41. Be2 {[%emt 0:01:59]} Bd7 {[%emt 0:04:01]} 42. c4 {[%emt 0:00:45]} a4 {[%emt 0:01:32]} 43. Bf3 {[%emt 0:03:32]} Bc7 {[%emt 0:04:30]} 44. c5 {[%emt 0:10:24]} Bb5 {[%emt 0:00:33]} 45. c6 {[%emt 0:00:39]} Bd6 {[%emt 0:01:50]} 46. Bf4 {[%emt 0:00:46]} Bxf4 {[%emt 0:00:09]} 47. gxf4 {[%emt 0:00:30]} Kf8 {[%emt 0:00:11]} 48. Rc1 {[%emt 0:09:03]} Ba6 {[%emt 0:03:05]} 49. d5 {[%emt 0:06:59]} Ke7 {[%emt 0:01:16]} 50. Ke3 {[%emt 0:01:40]} Kd6 {[%emt 0:02:27]} 51. Kd4 {[%emt 0:00:40]} Bb5 {[%emt 0:01:34]} 52. dxe6 {[%emt 0:00:35]} fxe6 {[%emt 0:00:07]} 53. c7 {[%emt 0:00:26]} Rxc7 {[%emt 0:00:05]} 54. Rxc7 {[%emt 0:00:03]} Kxc7 {[%emt 0:00:05]} 55. Kc3 {[%emt 0:00:26]} Bc6 {[%emt 0:00:14]} 56. Bg4 {[%emt 0:00:27]} Bd5 {[%emt 0:00:07]} 57. Kb2 {[%emt 0:00:19]} Kd6 {[%emt 0:00:09]} 58. Ka1 {[%emt 0:00:14]} e5 {[%emt 0:00:09]} 59. fxe5+ {[%emt 0:00:08]} Kxe5 {[%emt 0:00:05]} 60. Bd1 {[%emt 0:00:10]} Bb3 {[%emt 0:00:04]} 1/2-1/2